Cogmind - Beta 15 @@@ ROGUE MODE // 2025.08.21 @ 13:32:45 Player: Minty Result: Self-destructed Performance ------------- Evolutions (6) 3000 Regions Visited (16) 3200 Robots Destroyed (182) 910 Value Destroyed (8526) 8526 Prototype IDs (37) 740 Alien Tech Used (0) 0 Bonus (4501) 4501 TOTAL SCORE: 20877 Bonus ------- High Alert Combat Kills 2615 Follower Combat Kills 846 Entered Garrisons 600 Used RIF Installer 500 Friendly Fire -60 Cogmind --------- Core Integrity 181/1150 Matter 272/300 Energy 334/335 System Corruption 33% Temperature Cool (3) Movement Flying (34) Location -4/Factory Parts ------- > --- POWER (2) -------- Improved Ion Engine Light Antimatter Reactor > --- PROPULSION (5) --- Impulse Thruster Field Propulsion Array Field Propulsion Array > --- UTILITY (7) ------ Machine Analyzer Improved Signal Interpreter IFF Parser Advanced Salvage Targeting Computer Improved Armor Integrity Analyzer Powered Armor Hacking Suite > --- WEAPON (5) ------- Advanced Datajack Lance > --- INVENTORY (5) ---- Gyrokinetic Inverter Thermal Barrier Long-range Tractor Beam Drone Bay (2/2) Peak State ------------ > --- POWER ------------ Quantum-Fission Reactor > --- PROPULSION ------- Advanced Heavy Treads Biometal Heavy Treads Wheeled Compact-FC Exoskeleton > --- UTILITY ---------- Armored Scrap Engine Cargo Storage Unit Improved Launcher Guidance Computer Energy Filter Improved Thermal Shield > --- WEAPON ----------- Gamma Bomb Array Kinetic Autogun Construct/G > --- INVENTORY -------- Light Angular Momentum Engine Antimatter Reactor Micro Antimatter Reactor Improved Treads Improved Treads Improved Treads Improved Launcher Guidance Computer Improved Particle Charger Authchip [Propulsion] Relay Coupler [NC] Relay Coupler [NC] Relay Coupler [NC] Relay Coupler [NC] Relay Coupler [NC] Relay Coupler [Swarmer] Relay Coupler [Swarmer] Relay Coupler [Swarmer] Relay Coupler [Grunt] Relay Coupler [Sentry] Long-range Tractor Beam Heavy Mass Driver Rocket Array [Rating: 113] Favorites ----------- Power Constructs Engine Subdweller Power Source Power Core Light Nuclear Core Reactor Constructs Propulsion Constructs Treads Biometal Heavy Treads Leg Cargo Legs Wheel Constructs Hover Unit Antigrav System Flight Unit Improved VTOL Module Utility Small Storage Unit Device Armored Scrap Engine Storage Small Storage Unit Processor Improved Launcher Guidance Computer Hackware Hacking Suite Protection Medium Armor Plating Weapon Constructs Energy Gun Constructs Energy Cannon Cooled Phase Cannon Ballistic Gun Subdweller Machine Gun Ballistic Cannon Enhanced Hardcell Cannon Launcher Rocket Launcher Special Weapon Improved Remote Datajack Slashing Weapon Katana Piercing Weapon Spear Special Melee Weapon Improved Datajack Build | -11 -10 -10 -10 -8 -8 -8 -7 -7 -7 -5 -5 -5 -5 -4 -4 -4 ------- Run | Yrd Mat Min Sub Mat Gar Mat Fac Sto Rec Fac Gar Fac Gar Fac Was Fac Slots Evolved 12 | . . . . 4 . . 2 . . 4 . . . 2 . . Power 1 | . . . . . . . . . . . . . . 1 . . Propulsion 3 | . . . . 1 . . 1 . . 1 . . . . . . Utility 5 | . . . . 2 . . 1 . . 2 . . . . . . Weapon 3 | . . . . 1 . . . . . 1 . . . 1 . . Parts Attached 182 | . 2 3 16 22 4 10 6 6 4 11 14 6 22 29 4 23 Power 27 | . . 1 3 3 2 1 . 2 1 1 3 . 3 5 . 2 Engine 14 | . . 1 3 2 . 1 . 2 1 1 2 . . . . 1 Core 6 | . . . . 1 2 . . . . . . . 1 2 . . Reactor 7 | . . . . . . . . . . . 1 . 2 3 . 1 Propulsion 46 | . . . 3 6 1 2 1 1 1 4 4 . 4 11 2 6 Treads 12 | . . . 2 . . . . 1 . 2 3 . 3 . 1 . Leg 8 | . . . 1 1 . . . . . 2 1 . . 2 1 . Wheel 4 | . . . . . . . . . . . . . . 4 . . Hover 5 | . . . . 1 . . . . 1 . . . 1 . . 2 Flight 17 | . . . . 4 1 2 1 . . . . . . 5 . 4 Utility 63 | . 2 . 2 7 1 2 3 1 2 5 4 3 10 10 1 10 Device 27 | . 1 . 2 2 . . 1 1 2 1 2 2 1 5 1 6 Storage 2 | . . . . . . 1 . . . . 1 . . . . . Processor 16 | . 1 . . 4 1 1 2 . . . . 1 2 2 . 2 Hackware 16 | . . . . . . . . . . 4 1 . 7 3 . 1 Protection 2 | . . . . 1 . . . . . . . . . . . 1 Artifact . | . . . . . . . . . . . . . . . . . Weapon 46 | . . 2 8 6 . 5 2 2 . 1 3 3 5 3 1 5 Energy Gun 7 | . . 1 . 2 . 1 . . . . 1 . 2 . . . Energy Cannon 2 | . . . . . . . . . . . . . . 1 . 1 Ballistic Gun 16 | . . . 7 4 . . . . . . 2 1 . 2 . . Ballistic Cannon 2 | . . . . . . . . . . . . 1 1 . . . Launcher 7 | . . 1 . . . 1 1 1 . 1 . 1 . . 1 . Special Weapon 2 | . . . . . . . . . . . . . 2 . . . Impact Weapon . | . . . . . . . . . . . . . . . . . Slashing Weapon 1 | . . . . . . 1 . . . . . . . . . . Piercing Weapon 7 | . . . 1 . . 2 1 . . . . . . . . 3 Special Melee Weapon 2 | . . . . . . . . 1 . . . . . . . 1 Unidentified Prototypes 18 | . . . . 5 . 1 . 2 1 . 1 1 . 3 2 2 Corrupted Parts 4 | . . . . . . . . . . . . . 2 . 2 . System Corruption 27 | . . . . . . . . . . . . . 13 . 14 . Parts Lost 74 | . . 1 6 4 2 . 1 3 . 4 5 2 16 28 . 2 Power 14 | . . . 2 1 1 . . 1 . 1 . . 2 6 . . Propulsion 22 | . . . 1 . 1 . . 2 . 3 1 . 6 8 . . Utility 20 | . . . 1 1 . . 1 . . . 2 2 2 9 . 2 Weapon 18 | . . 1 2 2 . . . . . . 2 . 6 5 . . Highest Loss Streak 27 | . . 1 2 3 2 . 1 2 . 2 2 1 9 27 . 1 To Critical Strikes 3 | . . . . . . . . . . . . . 2 1 . . Average Backups 11 | . 7 7 7 6 7 7 7 7 8 5 7 22 23 18 4 4 Power 1 | . 1 . . . . . . . 1 1 . 2 2 1 . . Propulsion . | . 3 3 1 1 1 . . . . . . 2 . 1 . . Utility 6 | . 2 3 2 1 5 4 5 5 5 2 4 15 18 14 3 2 Weapon 2 | . . . 3 3 . 2 1 1 2 1 2 3 . . 1 1 Tool/Special . | . . . . . . . . . . . . . . . . . Unused Backups 55 | . . 6 1 . 5 12 . 4 . . 9 4 1 12 . 1 Power 7 | . . 2 . . . . . . . . 3 2 . . . . Propulsion 5 | . . 1 1 . . . . . . . 1 1 . 1 . . Utility 30 | . . 3 . . 3 8 . 3 . . 2 . . 11 . . Weapon 12 | . . . . . 2 4 . . . . 3 1 1 . . 1 Tool/Special 1 | . . . . . . . . 1 . . . . . . . . Average Slot Usage (%) 67 | . 96 94 80 79 81 84 97 92 74 69 58 56 49 39 21 56 Engine 4 | . 14 14 11 5 5 1 7 7 7 2 . . . . . 2 Reactor 2 | . . . . . . . . . . . 4 5 4 3 . 2 Treads 7 | . . . 4 . . . . 3 . 7 15 17 6 . . . Leg 5 | . 28 28 10 6 . . . . . 2 . . . . 4 . Flight 3 | . . . . 14 26 24 30 20 15 5 . . . . . 9 Device 13 | . . 14 19 13 . . 6 12 15 10 12 16 9 3 . 3 Storage 6 | . 14 14 11 8 9 9 7 7 7 . 2 5 5 4 . . Processor 4 | . 10 . . 8 27 27 22 17 8 1 . 2 6 5 10 12 Hackware 4 | . . . . . . . . . . 19 14 . 3 7 5 7 Energy Gun 2 | . 28 21 . 1 . . . . . . 2 . 1 2 . . Ballistic Gun 5 | . . . 18 10 2 . . . . . . . . . . . Launcher 1 | . . . 3 . . . . . . 3 . 1 . . . . Piercing Weapon 1 | . . . . 3 8 12 21 17 7 5 . . . . . 6 Peak Build Rating 113 | . 7 9 33 41 29 37 42 45 51 69 107 113 112 86 42 101 Average Rating 58 | . 6 7 26 29 25 29 40 40 47 59 93 104 84 55 27 72 On Entrance 38 | 6 6 7 7 32 25 27 28 42 35 51 65 98 103 68 15 42 Naked Turns . | . . . . . . . . . . . . . . . . . Heaviest Build 195 | 12 13 17 31 38 15 14 19 21 20 32 175 195 185 190 1 37 Greatest Support 189 | 20 20 20 55 55 15 15 19 29 19 46 189 183 183 98 3 37 Greatest Overweight (x) 5 | . . . . 5 1 1 . 1 1 1 4 1 4 5 . 1 Average Overweight (x) . | . . . . . . . . . . . . . 1 . . . Largest Inventory Capacity 30 | . 8 8 8 8 8 8 8 8 8 8 30 30 30 30 5 5 Average Capacity 15 | . 8 8 8 8 8 8 8 8 8 5 15 30 30 25 5 5 Most Carried 30 | . 8 8 8 8 8 8 8 8 8 8 22 30 30 28 5 5 Average Carried 11 | . 7 7 7 6 7 7 7 7 7 4 8 24 23 18 4 4 Final Capacity 30 | 8 8 8 8 8 8 8 8 8 8 5 30 30 30 5 5 5 Final Carried 23 | 6 8 8 8 8 8 8 8 8 8 5 22 20 23 4 5 4 Scrap Engine Consumption 77 | . . . . . . . . . 2 3 30 15 23 4 . . Constructs Created 7 | . . . . . . . . . . 1 3 . 3 . . . Constructs Modified 27 | . . . . . . . . . . . 12 8 7 . . . Class Distribution -------------------- 25% | Mutant 18% | Hauler-Mutant 17% | Scavenger-Mutant 14% | Bothacker-Mutant 12% | Hacker-Mutant 6% | Sprinter Dominant Class ---------------- Mutant | -10/Materials Mutant | -10/Mines Scavenger-Mutant | -10/Subcaves Sprinter | -8/Materials Sprinter | -8/Garrison Sprinter | -8/Materials Sprinter | -7/Factory Sprinter | -7/Storage Mutant | -7/Recycling Hacker-Mutant | -5/Factory Hacker-Mutant | -5/Garrison Hauler-Mutant | -5/Factory Bothacker-Mutant | -5/Garrison Bothacker-Mutant | -4/Factory Mutant | -4/Waste Mutant | -4/Factory Resources | -11 -10 -10 -10 -8 -8 -8 -7 -7 -7 -5 -5 -5 -5 -4 -4 -4 ----------- Run | Yrd Mat Min Sub Mat Gar Mat Fac Sto Rec Fac Gar Fac Gar Fac Was Fac Matter Collected 6273 | 180 30 309 731 753 193 158 96 125 40 160 1018 547 1321 270 . 342 Remotely 859 | . . . . 685 . . . . . . . . 174 . . . Salvage Created 8241 | . 144 273 605 503 366 527 130 585 114 261 1330 917 1359 246 . 881 Parts 388 | . 16 10 44 28 20 23 8 29 6 23 32 35 70 14 . 30 Haulers Intercepted 10 | . . . . 3 . 3 . 1 . . . 1 . . . 2 Recyclers Shooed 2 | . 1 . . 1 . . . . . . . . . . . . Parts Field Recycled . | . . . . . . . . . . . . . . . . . Retrieved Matter . | . . . . . . . . . . . . . . . . . Parts Self-Destructed 23 | . . . 23 . . . . . . . . . . . . . Prevented . | . . . . . . . . . . . . . . . . . Kills | -11 -10 -10 -10 -8 -8 -8 -7 -7 -7 -5 -5 -5 -5 -4 -4 -4 ------- Run | Yrd Mat Min Sub Mat Gar Mat Fac Sto Rec Fac Gar Fac Gar Fac Was Fac Combat Hostiles Destroyed 138 | . 3 7 21 8 7 4 4 7 1 6 16 11 37 3 . 3 Melee 24 | . . . . 1 3 2 2 7 1 2 2 1 3 . . . Guns 45 | . 3 5 15 7 4 . . . . . 6 . 4 1 . . Cannons 21 | . . . . . . . . . . . 4 5 10 2 . . AOE 44 | . . 2 6 . . 2 2 . . 4 4 1 20 . . 3 Classes Destroyed 19 | . 3 1 2 3 1 2 1 . . 2 1 2 1 . . . Worker 10 | . . . . 1 . 1 . 1 . 1 . 4 . 2 . . Builder 6 | . . . . . . 1 . 1 . . . 3 . . . 1 Tunneler 2 | . . . . . . . 1 . . 1 . . . . . . Hauler 10 | . . . . 3 . 3 . 1 . . . 1 . . . 2 Recycler 6 | . 1 . . 1 . 1 . . . . . . . . . 3 Mechanic 3 | . . . . . . . . . . 1 . 1 . . . 1 Operator 3 | . 1 . . . . . . 1 . . . . . . . 1 Watcher 3 | . . . . . . 1 . . . . . . 1 . . 1 Swarmer 35 | . 3 . 4 4 . . 3 . . 4 . . 17 . . . Grunt 44 | . . 7 4 1 5 3 1 3 . . 4 7 6 . . 3 Brawler 1 | . . . . . . . . . . . . 1 . . . . Duelist 3 | . . . . . 2 . . . . . 1 . . . . . Protector 1 | . . . . . . . . . . . . 1 . . . . Sentry 12 | . . . 1 2 . 1 . 3 1 1 3 . . . . . Specialist 3 | . . . . . . . . . . . 1 . 2 . . . Hunter 20 | . . . . 1 . . . 1 . . 6 1 8 3 . . Programmer 6 | . . . . . . . . . . 1 1 1 3 . . . Behemoth 1 | . . . . . . . . . . . . . 1 . . . Subdweller 13 | . . . 13 . . . . . . . . . . . . . Best Kill Streak 9 | . 5 2 4 6 5 3 5 6 1 5 4 5 9 2 . 5 Combat Bots Only 9 | . 3 2 4 6 5 3 4 5 1 4 4 3 9 2 . 3 Max Kills in Single Turn 5 | . 1 2 2 2 1 2 2 1 1 4 2 2 5 1 . 3 Gunslinging 1 | . . . 1 . . . . . . . . . . . . . Exploded 4 | . . 2 2 . . 2 2 . . 4 2 1 4 . . 2 Melee 1 | . . . . 1 1 1 1 1 1 1 1 1 1 . . . Uniques/NPCs Destroyed . | . . . . . . . . . . . . . . . . . Combat | -11 -10 -10 -10 -8 -8 -8 -7 -7 -7 -5 -5 -5 -5 -4 -4 -4 -------- Run | Yrd Mat Min Sub Mat Gar Mat Fac Sto Rec Fac Gar Fac Gar Fac Was Fac Hostile Shots Fired 1383 | . 14 22 88 102 69 24 11 96 . 29 129 107 279 325 . 88 Missed 423 | . 4 6 29 28 16 9 5 36 . 8 32 34 62 103 . 51 Hits 960 | . 10 16 59 74 53 15 6 60 . 21 97 73 217 222 . 37 Melee 24 | . . . . . 12 . . . . . 2 2 . 8 . . Projectile 936 | . 10 16 59 74 41 15 6 60 . 21 95 71 217 214 . 37 AOE 1 | . . . . . . . . . . . . . . 1 . . Critical Strikes 41 | . . . . 2 2 2 . . . 1 7 3 9 12 . 3 Part Disruptions 1 | . . . . . . . . . . . . . 1 . . . Damage Taken 16853 | . 86 241 1084 919 756 224 124 480 . 384 2132 1257 4078 4363 . 725 Core 2802 | . 20 59 145 67 366 71 32 153 . 55 244 113 508 715 . 254 Absorbed by Shields 234 | . . . . . 234 . . . . . . . . . . . Reduced by Siege Mode 5 | . . . . . . . . . . . . . 5 . . . Ignored by Resistances 730 | . . . . . . . . . . 72 178 248 232 . . . Regen/Repaired (Parts) 1434 | . . . . . . 38 . . . . 325 714 357 . . . Core Remaining (%) 39 | 100 . . 10 . . 8 . . 73 . . . 8 . . . Volleys Fired 542 | . 6 25 75 32 30 5 2 . . 1 166 56 117 27 . . Largest 3 | . 2 2 2 3 1 1 1 . . 1 2 2 2 2 . . Hottest 184 | . 90 90 83 78 28 33 33 . . 45 104 184 149 120 . . Shots Fired 724 | . 12 40 145 81 29 5 2 . . 1 181 66 127 35 . . Gun 461 | . 12 34 128 81 29 . . . . . 133 . 25 19 . . Cannon 167 | . . . . . . . . . . . 43 55 57 12 . . Launcher 59 | . . 6 17 . . 5 2 . . 1 5 11 12 . . . Special 37 | . . . . . . . . . . . . . 33 4 . . Kinetic 443 | . . . 127 81 29 . . . . . 60 55 72 19 . . Thermal 156 | . 6 21 1 . . . . . . . 116 . . 12 . . Explosive 41 | . . 6 17 . . . 2 . . 1 5 . 10 . . . Electromagnetic 47 | . 6 13 . . . 5 . . . . . 11 12 . . . Robot Hit Streak 35 | . 5 6 9 5 6 3 . . . . 28 5 35 10 . . Robot Miss Streak 10 | . 2 2 4 10 2 1 2 . . 8 3 6 3 4 . . Penetration Max 1 | . . . . . . . . . . . 1 . . . . . Secondary Targets 7 | . 1 2 2 2 . . . . . . . . . . . . Max Gunslinging Chain 1 | . 1 1 1 1 . . . . . . . . . . . . Shots Hit Robots 537 | . 7 27 76 50 28 19 4 27 2 9 138 26 90 21 . 13 Core Hits 385 | . 5 13 30 20 15 11 6 16 1 16 72 49 109 9 . 13 Critical Kills . | . . . . . . . . . . . . . . . . . Critical Parts Destroyed 6 | . . . 1 1 1 . . . . . 1 . . 2 . . Critical Strikes 30 | . . 3 1 2 1 3 . 1 1 3 7 2 2 2 . 2 Burn 9 | . . 3 . . . . . . . . 6 . . . . . Destroy 6 | . . . 1 1 1 . . . . . 1 . . 2 . . Blast 4 | . . . . . . . . . . . . 2 2 . . . Impale 11 | . . . . 1 . 3 . 1 1 3 . . . . . 2 Melee Attacks 173 | . . . 2 20 14 27 9 36 13 11 1 . . . . 40 Impact . | . . . . . . . . . . . . . . . . . Slashing 2 | . . . . . . 2 . . . . . . . . . . Piercing 171 | . . . 2 20 14 25 9 36 13 11 1 . . . . 40 Sneak Attacks 26 | . . . . 2 . 6 2 4 1 3 . . . . . 8 Combat Hostiles 1 | . . . . . . . . . 1 . . . . . . . Follow-up Attacks 10 | . . . . . . 1 . 7 . . . . . . . 2 Damage Inflicted 24372 | . 118 544 2349 1200 653 1120 410 1017 117 715 5038 3100 5532 615 . 1844 Guns 6038 | . 77 331 1242 701 467 . . . . . 2605 . 443 172 . . Cannons 5028 | . . . . . . . . . . . 1307 1379 1945 397 . . Explosions 8591 | . 41 182 1107 . . 291 166 . . 345 1063 1493 2968 . . 935 Melee 4141 | . . . . 499 186 829 244 1017 117 360 . . . . . 889 Ramming 574 | . . 31 . . . . . . . 10 63 228 176 46 . 20 Kinetic 7617 | . . . 1229 701 467 . . . . . 1435 1379 2234 172 . . Thermal 3821 | . 53 177 13 . . . . . . . 2477 92 . 397 . 612 Explosive 5980 | . . 182 1107 . . . 166 . . 345 1063 230 2564 . . 323 Electromagnetic 2239 | . 65 154 . . . 291 . . . . . 1171 558 . . . Impact . | . . . . . . . . . . . . . . . . . Slashing 36 | . . . . . . 36 . . . . . . . . . . Piercing 4105 | . . . . 499 186 793 244 1017 117 360 . . . . . 889 Highest Corruption 33 | . . . . 5 5 5 . . . . 1 8 24 11 31 33 Average Corruption 10 | . . . . 5 5 5 . . . . 1 4 19 10 20 31 Corruption Purged . | . . . . . . . . . . . . . . . . . Corruption Blocked . | . . . . . . . . . . . . . . . . . Effects 165 | . . . . 3 6 8 . . . . 10 15 89 4 3 27 Message Errors 39 | . . . . . 1 1 . . . . 5 2 23 1 . 6 Matter Fused 40 | . . . . 1 1 2 . . . . 3 5 21 1 2 4 Heat Flow Errors 15 | . . . . . 1 . . . . . 1 2 11 . . . Energy Discharges 21 | . . . . 1 1 2 . . . . . 2 13 . . 2 Parts Rejected 1 | . . . . . . . . . . . . . 1 . . . Data Loss (minor) 24 | . . . . . 1 . . . . . 1 3 9 1 1 8 Data Loss (major) 9 | . . . . . . 2 . . . . . 1 5 . . 1 Misfires 2 | . . . . . . . . . . . . . 2 . . . Alerts 4 | . . . . 1 . 1 . . . . . . 2 . . . Misdirections 8 | . . . . . . . . . . . . . 1 1 . 6 Weapon Failures 2 | . . . . . 1 . . . . . . . 1 . . . Overload Shots 8 | . . . . . . . . . . . . . . 8 . . Effects 1 | . . . . . . . . . . . . . . 1 . . Heat Surge 1 | . . . . . . . . . . . . . . 1 . . Overflow Damage 1180 | . . . 17 . . 186 44 47 94 13 122 157 85 66 . 349 Projectiles 306 | . . . . . . . . . . . 57 109 74 66 . . Explosions 358 | . . . 17 . . . . . . 13 61 7 11 . . 249 Melee 516 | . . . . . . 186 44 47 94 . 4 41 . . . 100 Knockbacks 24 | . . . . . . . . . . 1 3 9 11 . . . Impact 5 | . . . . . . . . . . 1 . 3 1 . . . Kinetic 16 | . . . . . . . . . . . 3 5 8 . . . Secondary 3 | . . . . . . . . . . . . 1 2 . . . Self-Inflicted Damage 913 | . . . 43 . . . 33 . . 23 336 179 268 22 . 9 Shots 48 | . . . 1 . . . 1 . . 1 15 15 15 . . . Rammed 52 | . . . . . . . . . . 1 13 13 20 3 . 2 Targets Rammed 64 | . . 8 . . . . . . . 1 15 14 21 3 . 2 Kicked 8 | . . 8 . . . . . . . . . . . . . . Crushed 4 | . . . . . . . . . . . 2 1 1 . . . Highest Temperature 406 | . 120 280 . 24 259 48 1 . . . 279 388 246 406 . 15 Average Temperature 107 | . 51 107 . 10 97 37 1 . . . 78 157 90 210 . 6 Received Heat Transfer 3345 | . . 138 165 117 291 171 9 141 . 171 324 453 927 294 . 144 Effects 6 | . . . . . . . . . . . 1 3 . 2 . . Shutdowns 2 | . . . . . . . . . . . . 1 . 1 . . Energy Bleed 4 | . . . . . . . . . . . 1 2 . 1 . . Siege Activations 1 | . . . . . . . . . . . . . 1 . . . Total Turns 26 | . . . . . . . . . . . . . 26 . . . Longest Duration 26 | . . . . . . . . . . . . . 26 . . . Martial Activations . | . . . . . . . . . . . . . . . . . Shielding Activations . | . . . . . . . . . . . . . . . . . Robots Disrupted . | . . . . . . . . . . . . . . . . . Combat Hostiles . | . . . . . . . . . . . . . . . . . Robots Corrupted 6 | . . . . . . . . . . . . 6 . . . . Combat Hostiles 4 | . . . . . . . . . . . . 4 . . . . Parts Fried 20 | . . 1 . . . 2 . . . . . 14 3 . . . Impact Corruptions 3 | . . . . . . . . . . . 1 2 . . . . Robots Melted . | . . . . . . . . . . . . . . . . . Combat Hostiles . | . . . . . . . . . . . . . . . . . Parts Melted 7 | . . 3 1 . . . . . . . 3 . . . . . Heat Transferred 5250 | . 37 740 37 . . . . . . . 3737 51 . 298 . 350 Parts Sabotaged . | . . . . . . . . . . . . . . . . . Parts Stolen . | . . . . . . . . . . . . . . . . . Parts Stripped . | . . . . . . . . . . . . . . . . . Power Chain Reactions 2 | . 1 . . . . . . . . . . 1 . . . . Alert | -11 -10 -10 -10 -8 -8 -8 -7 -7 -7 -5 -5 -5 -5 -4 -4 -4 ------- Run | Yrd Mat Min Sub Mat Gar Mat Fac Sto Rec Fac Gar Fac Gar Fac Was Fac Maximum Alert Level 5 | . . . . . 1 1 1 2 . 1 5 4 5 4 2 3 Low Security (%) 23 | . 100 100 . 100 60 57 41 30 100 74 . . . . . . Level 1 14 | . . . . . 39 42 58 41 . 25 18 . . . 14 89 Level 2 11 | . . . . . . . . 27 . . 32 . . . 85 7 Level 3 8 | . . . . . . . . . . . 11 45 2 3 . 2 Level 4 18 | . . . . . . . . . . . 16 54 17 96 . . Level 5 23 | . . . . . . . . . . . 20 . 79 . . . High Security . | . . . . . . . . . . . . . . . . . Max Security . | . . . . . . . . . . . . . . . . . Peak Influence 2334 | . 70 73 . 130 303 262 265 423 171 318 2026 1364 2334 1362 425 776 Initial 1225 | . . 19 . . 22 147 119 115 160 121 201 1063 954 1225 425 276 Average 905 | . 19 22 . 65 166 197 193 250 114 159 947 1101 1894 1230 411 332 Influence Increases 8039 | . 100 245 200 245 301 245 206 438 42 437 1935 765 1620 542 . 718 Destroy 0b10 Robot/C 2940 | . 60 160 160 160 140 80 80 140 20 180 380 300 840 180 . 60 Destroy 0b10 Robot/NC 295 | . 10 . . 25 . 35 5 25 5 20 40 50 20 15 . 45 Destroy Leader 446 | . 10 40 10 46 . 28 10 52 . 42 20 62 60 50 . 16 Allied During Kill 136 | . . 25 . . . . . . . 42 18 10 17 24 . . Successful Hack 122 | . 20 . . 10 . 22 . 16 . 8 28 . . . . 18 Disable Machine 360 | . . . . . . 30 15 . 15 . 15 150 . 15 . 120 Anti-Garrison Action 1950 | . . . . . 100 . . 200 . . 1300 . 350 . . . Destroy Structure 835 | . . 20 . 4 1 5 21 5 2 30 134 148 213 78 . 174 Advance Influence 100 | . . . . . . . . . . 100 . . . . . . Partial Spotted 45 | . . . . . . . 30 . . 15 . . . . . . Lose Combat Pursuer 810 | . . . 30 . 60 45 45 . . . . 45 120 180 . 285 Influence Decreases 7263 | . 50 246 249 210 33 286 213 280 403 201 197 1427 650 1659 822 337 Entered New Map 4273 | . . 31 26 . 13 156 143 140 253 31 87 963 410 1109 792 119 Time Decay 2000 | . 50 185 193 170 . 130 60 110 150 130 . 404 . 190 30 198 Lost Part 710 | . . 10 30 40 20 . 10 30 . 40 50 20 160 280 . 20 Lost Ally 280 | . . 20 . . . . . . . . 60 40 80 80 . . Squads Dispatched 27 | . 1 . . 1 . 1 1 3 . 1 . 8 . 5 . 6 Investigation 11 | . . . . 1 . 1 1 3 . 1 . 2 . . . 2 Extermination 2 | . . . . . . . . . . . . 1 . . . 1 Reinforcement 9 | . 1 . . . . . . . . . . 3 . 2 . 3 Assault 4 | . . . . . . . . . . . . 2 . 2 . . Garrison 1 | . . . . . . . . . . . . . . 1 . . Intercept . | . . . . . . . . . . . . . . . . . Searches Triggered . | . . . . . . . . . . . . . . . . . Construction Impeded 5 | . . . . . . . . . . . . 2 . 2 . 1 Haulers Reinforced 1 | . . . . . . . . . . . . . . . . 1 Active Scanning Responses . | . . . . . . . . . . . . . . . . . Cargo Convoy Interrupts . | . . . . . . . . . . . . . . . . . Stealth | -11 -10 -10 -10 -8 -8 -8 -7 -7 -7 -5 -5 -5 -5 -4 -4 -4 --------- Run | Yrd Mat Min Sub Mat Gar Mat Fac Sto Rec Fac Gar Fac Gar Fac Was Fac Distress Signals 17 | . 1 . . 2 . 1 2 1 1 . 1 1 1 2 . 4 Communications Jammed . | . . . . . . . . . . . . . . . . . Distress Signals . | . . . . . . . . . . . . . . . . . Times Spotted 279 | . 11 7 23 18 11 8 7 10 . 12 16 31 55 31 1 38 Peak Tracking Total 18 | . 6 2 6 7 7 4 4 3 1 6 4 5 9 17 1 18 Tactical Retreats 21 | . . . 1 . 2 1 1 . . . . 2 5 3 . 6 Traps | -11 -10 -10 -10 -8 -8 -8 -7 -7 -7 -5 -5 -5 -5 -4 -4 -4 ------- Run | Yrd Mat Min Sub Mat Gar Mat Fac Sto Rec Fac Gar Fac Gar Fac Was Fac Traps Triggered 10 | . . . 1 . 4 . . . . . 1 . 1 2 . 1 Indirectly 1 | . . . . . . . . . . . . . 1 . . . Trap Hack Attempts . | . . . . . . . . . . . . . . . . . Triggered . | . . . . . . . . . . . . . . . . . Disarmed . | . . . . . . . . . . . . . . . . . Reprogrammed . | . . . . . . . . . . . . . . . . . Reused . | . . . . . . . . . . . . . . . . . Traps Extracted . | . . . . . . . . . . . . . . . . . Installed . | . . . . . . . . . . . . . . . . . Triggered . | . . . . . . . . . . . . . . . . . Objects Rigged 9 | . . . . . . . . . . . . . . . . 9 Exploded 4 | . . . . . . . . . . . . . . . . 4 Machines | -11 -10 -10 -10 -8 -8 -8 -7 -7 -7 -5 -5 -5 -5 -4 -4 -4 ---------- Run | Yrd Mat Min Sub Mat Gar Mat Fac Sto Rec Fac Gar Fac Gar Fac Was Fac Machines Disabled 38 | . 2 . 1 . 2 2 1 . 1 . 7 10 3 1 . 8 Max in Single Turn 6 | . 2 . 1 . 1 1 1 . 1 . 1 4 1 . . 6 Garrison Access 3 | . . . . . . . . 1 . . . . . 1 . 1 Garrison Relay 8 | . . . . . 2 . . . . . 4 . 2 . . . Machines Repaired . | . . . . . . . . . . . . . . . . . Machines Dismantled . | . . . . . . . . . . . . . . . . . Machines Sabotaged . | . . . . . . . . . . . . . . . . . Overloaded Fab Kills . | . . . . . . . . . . . . . . . . . Hacking | -11 -10 -10 -10 -8 -8 -8 -7 -7 -7 -5 -5 -5 -5 -4 -4 -4 --------- Run | Yrd Mat Min Sub Mat Gar Mat Fac Sto Rec Fac Gar Fac Gar Fac Was Fac Machines Accessed 39 | . 3 . 2 6 . 6 1 3 4 3 2 3 1 . . 5 Terminals 22 | . 3 . . 4 . 5 1 2 1 . 2 1 1 . . 2 Fabricators 2 | . . . . . . . . . . 2 . . . . . . Repair Stations 2 | . . . . . . 1 . . . . . 1 . . . . Recycling Units 4 | . . . . 1 . . . . 2 . . . . . . 1 Scanalyzers 1 | . . . . . . . . . . . . . . . . 1 Garrison Access 5 | . . . . 1 . . . 1 . 1 . 1 . . . 1 Total Hacks 114 | . 11 . 5 17 . 29 2 7 9 6 6 6 3 . . 13 Successful 54 | . 5 . 5 7 . 17 . 2 4 4 3 3 . . . 4 Failed 60 | . 6 . . 10 . 12 2 5 5 2 3 3 3 . . 9 Catastrophic 13 | . 1 . . 2 . 1 1 1 2 . 2 . 1 . . 2 Database Lockouts . | . . . . . . . . . . . . . . . . . Manual 57 | . 3 . . 12 . 20 . 8 . 3 5 3 . . . 3 Terminals 77 | . 11 . . 14 . 26 2 5 2 . 6 3 3 . . 5 Fabricators 5 | . . . . . . . . . . 5 . . . . . . Repair Stations 5 | . . . . . . 3 . . . . . 2 . . . . Recycling Units 8 | . . . . 2 . . . . 4 . . . . . . 2 Scanalyzers 5 | . . . . . . . . . . . . . . . . 5 Garrison Access 6 | . . . . 1 . . . 2 . 1 . 1 . . . 1 Terminal Hacks 22 | . 4 . 5 1 . 6 . . 3 . 3 . . . . . Record 5 | . . . 4 . . . . . 1 . . . . . . . Robot Analysis 1 | . 1 . . . . . . . . . . . . . . . Prototype ID Bank 3 | . 2 . . . . 1 . . . . . . . . . . Emergency Access Points 1 | . 1 . . . . . . . . . . . . . . . Repair Station Index 1 | . . . . . . 1 . . . . . . . . . . Alert Level 3 | . . . . . . 3 . . . . . . . . . . Zone Layout 2 | . . . . 1 . 1 . . . . . . . . . . Garrison Registry 1 | . . . . . . . . . . . 1 . . . . . Patrol Navigation 1 | . . . . . . . . . . . 1 . . . . . Security Stations 1 | . . . . . . . . . . . 1 . . . . . Proto ID Catalog 1 | . . . 1 . . . . . . . . . . . . . Release Object 2 | . . . . . . . . . 2 . . . . . . . Fabricator Hacks 1 | . . . . . . . . . . 1 . . . . . . Network Status 1 | . . . . . . . . . . 1 . . . . . . Repair Station Hacks 2 | . . . . . . 2 . . . . . . . . . . Scan Component 1 | . . . . . . 1 . . . . . . . . . . Repair 1 | . . . . . . 1 . . . . . . . . . . Recycling Unit Hacks 2 | . . . . 1 . . . . 1 . . . . . . . Report Inventory 2 | . . . . 1 . . . . 1 . . . . . . . Scanalyzer 2 | . . . . . . . . . . . . . . . . 2 Insert Component 1 | . . . . . . . . . . . . . . . . 1 Analyze 1 | . . . . . . . . . . . . . . . . 1 Garrison Access Hacks 4 | . . . . 1 . . . . . 1 . 1 . . . 1 Unlock Access 3 | . . . . 1 . . . . . 1 . 1 . . . . Seal Access 1 | . . . . . . . . . . . . . . . . 1 Unauthorized Hacks 21 | . 1 . . 4 . 9 . 2 . 2 . 2 . . . 1 Terminals 17 | . 1 . . 4 . 9 . 1 . . . 1 . . . 1 Track 2 | . . . . 1 . . . . . . . 1 . . . . Assimilate 1 | . . . . . . . . 1 . . . . . . . . Botnet 8 | . 1 . . 2 . 5 . . . . . . . . . . Detonate 1 | . . . . . . . . . . . . . . . . 1 Operators 1 | . . . . 1 . . . . . . . . . . . . Skim 4 | . . . . . . 4 . . . . . . . . . . Fabricators 2 | . . . . . . . . . . 2 . . . . . . Liberate 1 | . . . . . . . . . . 1 . . . . . . Recompile 1 | . . . . . . . . . . 1 . . . . . . Repair Stations 1 | . . . . . . . . . . . . 1 . . . . Patch 1 | . . . . . . . . . . . . 1 . . . . Recycling Units . | . . . . . . . . . . . . . . . . . Scanalyzers . | . . . . . . . . . . . . . . . . . Garrison Access 1 | . . . . . . . . 1 . . . . . . . . Jam 1 | . . . . . . . . 1 . . . . . . . . Data Cores Recovered . | . . . . . . . . . . . . . . . . . Used . | . . . . . . . . . . . . . . . . . Hacking Detections 32 | . 3 . . 5 . 6 1 2 3 2 2 3 1 . . 4 Full Trace Events 10 | . 1 . . 1 . . 1 2 2 . . . 1 . . 2 Feedback Events 1 | . . . . . . . . . . . . . . . . 1 Corruption 1 | . . . . . . . . . . . . . . . . 1 Feedback Blocked . | . . . . . . . . . . . . . . . . . Robot Schematics Acquired . | . . . . . . . . . . . . . . . . . Robots Built . | . . . . . . . . . . . . . . . . . Authchips . | . . . . . . . . . . . . . . . . . Time . | . . . . . . . . . . . . . . . . . Total Robot Build Rating . | . . . . . . . . . . . . . . . . . Part Schematics Acquired . | . . . . . . . . . . . . . . . . . Parts Built . | . . . . . . . . . . . . . . . . . Authchips . | . . . . . . . . . . . . . . . . . Time . | . . . . . . . . . . . . . . . . . Total Part Build Rating . | . . . . . . . . . . . . . . . . . Parts Repaired 1 | . . . . . . 1 . . . . . . . . . . Time 60 | . . . . . . 60 . . . . . . . . . . Parts Recycled . | . . . . . . . . . . . . . . . . . Recycled Matter . | . . . . . . . . . . . . . . . . . Retrieved Matter . | . . . . . . . . . . . . . . . . . Retrieved Components . | . . . . . . . . . . . . . . . . . Parts Scanalyzed 1 | . . . . . . . . . . . . . . . . 1 Part Schematics Acquired . | . . . . . . . . . . . . . . . . . Parts Damaged . | . . . . . . . . . . . . . . . . . Bothacking | -11 -10 -10 -10 -8 -8 -8 -7 -7 -7 -5 -5 -5 -5 -4 -4 -4 ------------ Run | Yrd Mat Min Sub Mat Gar Mat Fac Sto Rec Fac Gar Fac Gar Fac Was Fac Used RIF Installer 1 | . . . . . . . . . . . 1 . . . . . Robots Hacked 18 | . . . . . . . . . . . . . 15 3 . . Non-combat 3 | . . . . . . . . . . . . . 2 1 . . Combat 15 | . . . . . . . . . . . . . 13 2 . . Robot Hacks Applied 23 | . . . . . . . . . . . . . 19 4 . . parse_system 3 | . . . . . . . . . . . . . 2 1 . . deconstruct_bot 1 | . . . . . . . . . . . . . 1 . . . overload_power 1 | . . . . . . . . . . . . . . 1 . . amplify_resonance 4 | . . . . . . . . . . . . . 4 . . . reboot_system 4 | . . . . . . . . . . . . . 4 . . . overwrite_iff 4 | . . . . . . . . . . . . . 2 2 . . formatsys_low 2 | . . . . . . . . . . . . . 2 . . . formatsys_high 4 | . . . . . . . . . . . . . 4 . . . Relay Couplers Released 33 | . . . . . 10 . . . . . 14 . 8 1 . . Machine Destruction 33 | . . . . . 10 . . . . . 14 . 8 1 . . Attached 11 | . . . . . . . . . . . 1 . 7 3 . . Fabnet Peak Effective % . | . . . . . . . . . . . . . . . . . Robots Rewired 4 | . . . . . . . . . . . 2 . 2 . . . Allies Hacked . | . . . . . . . . . . . . . . . . . Hacks Repelled . | . . . . . . . . . . . . . . . . . Allies | -11 -10 -10 -10 -8 -8 -8 -7 -7 -7 -5 -5 -5 -5 -4 -4 -4 -------- Run | Yrd Mat Min Sub Mat Gar Mat Fac Sto Rec Fac Gar Fac Gar Fac Was Fac Total Allies 19 | . . 3 . . . . . . . 3 2 . 10 1 . . Largest Group 6 | . . 3 2 . . . . . . 3 3 2 6 6 . . Highest-Rated Group 215 | . . 40 32 . . . . . . 87 87 70 215 215 . . Highest-Rated Ally 49 | . . 16 16 . . . . . . 29 41 41 49 49 . . Initial Warlord ECA Mod 5 | . . . . . . 2 1 1 1 . . . . . . . Total Orders 1 | . . . . . . . . . . . . . 1 . . . AID 1 | . . . . . . . . . . . . . 1 . . . Ally Attacks 158 | . . 17 17 . . . . . . 33 28 14 19 30 . . Total Damage 3520 | . . 149 213 . . . . . . 457 499 418 461 1323 . . Kills 26 | . . 1 . . . . . . . 4 3 5 5 8 . . Allies Corrupted . | . . . . . . . . . . . . . . . . . Allies Melted . | . . . . . . . . . . . . . . . . . Intel | -11 -10 -10 -10 -8 -8 -8 -7 -7 -7 -5 -5 -5 -5 -4 -4 -4 ------- Run | Yrd Mat Min Sub Mat Gar Mat Fac Sto Rec Fac Gar Fac Gar Fac Was Fac Active Infowar (turns) 2544 | . 13 648 643 164 183 . 123 227 316 38 . . . . . 189 Sensors 704 | . . . . . . . 123 227 316 38 . . . . . . IFF 55 | . . . . . . . . . . . . . . . . 55 Terrain 172 | . . . . 53 . . . . . . . . . . . 119 Structural 1304 | . 13 648 643 . . . . . . . . . . . . . T.N.C. 347 | . . . . 164 183 . . . . . . . . . . . Machine Analysis 70 | . . . . . . . . . . . . . . . . 70 Robot Analysis Total 1 | . 1 . . . . . . . . . . . . . . . Derelict Logs Recovered 3 | . . 1 2 . . . . . . . . . . . . . Drone Launches . | . . . . . . . . . . . . . . . . . Drone Recoveries . | . . . . . . . . . . . . . . . . . Exploration | -11 -10 -10 -10 -8 -8 -8 -7 -7 -7 -5 -5 -5 -5 -4 -4 -4 ------------- Run | Yrd Mat Min Sub Mat Gar Mat Fac Sto Rec Fac Gar Fac Gar Fac Was Fac Turns Passed 12656 | . 218 648 3369 391 256 273 126 227 316 277 2673 965 2045 384 70 418 Spaces Moved 8629 | 1 161 444 2300 396 328 432 277 166 326 209 1366 458 672 264 124 705 Core 310 | . . . . . . . . . . . . . . 8 124 178 Treads 2383 | . . . 248 . . . . 48 . 62 1316 458 251 . . . Legs 2900 | 1 161 444 2052 34 . . . . . 45 50 . 113 . . . Wheels 107 | . . . . . . . . . . . . . 1 106 . . Hover 312 | . . . . . . . . . . . . . 307 . . 5 Flight 2617 | . . . . 362 328 432 277 118 326 102 . . . 150 . 522 Fastest Speed 26 | 120 120 120 120 32 32 29 26 26 32 32 71 131 131 32 50 34 Average Speed 106 | 120 120 120 132 45 32 36 26 72 83 101 131 164 172 99 50 39 Slowest Speed 390 | 120 120 120 160 390 32 107 26 160 107 160 263 186 297 210 50 120 Overloaded Moves . | . . . . . . . . . . . . . . . . . Propulsion Burnouts . | . . . . . . . . . . . . . . . . . Robots Hopped 5 | . . . . . . . . . . . . . . 2 . 3 Potential Cave-ins . | . . . . . . . . . . . . . . . . . Cave-ins Triggered . | . . . . . . . . . . . . . . . . . Exploration Rate (%) 37 | 2 32 93 86 33 28 29 8 28 43 7 87 13 51 8 68 18 Regions Visited 16 Branch Regions 4 Pre-discovered Areas 3 | . . 1 2 . . . . . . . . . . . . . Known Exits Taken 8 | . 1 . . 1 . 1 1 1 1 1 . 1 . . . . Unknown Exits Taken 3 | 1 . 1 1 . . . . . . . . . . . . . Scrap Searched 1 | . . 1 . . . . . . . . . . . . . . Spaces Dug 73 | . . 36 1 4 1 5 2 5 2 . . 3 . . . 14 Terrain Destroyed 602 | . . 75 138 4 1 5 20 5 2 18 41 79 107 8 . 99 Melee 34 | . . . 1 4 1 5 2 5 2 . . . . . . 14 Projectile 89 | . . . . . . . . . . . 23 43 15 8 . . AOE 479 | . . 75 137 . . . 18 . . 18 18 36 92 . . 85 Terrain Rammed . | . . . . . . . . . . . . . . . . . Walls Destroyed . | . . . . . . . . . . . . . . . . . Machines Disabled . | . . . . . . . . . . . . . . . . . Actions | -11 -10 -10 -10 -8 -8 -8 -7 -7 -7 -5 -5 -5 -5 -4 -4 -4 --------- Run | Yrd Mat Min Sub Mat Gar Mat Fac Sto Rec Fac Gar Fac Gar Fac Was Fac Total 11145 | . 174 519 2478 525 436 521 315 231 349 252 2066 595 1424 346 131 783 Wait 1168 | . . 26 54 26 9 20 17 11 2 5 417 34 535 4 . 8 Move 8606 | . 160 443 2299 395 327 431 276 165 325 208 1365 458 671 260 123 700 Hop 4 | . . . . . . . . . . . . . . 2 . 2 Pick Up 134 | . 4 6 11 5 8 12 4 8 1 3 30 11 20 9 1 1 Fast Attach 95 | . 1 . 4 15 2 5 2 1 2 6 10 1 3 17 4 22 Attach 83 | . . 1 9 4 2 2 4 3 . 8 7 7 22 13 . 1 Detach 53 | . . 1 2 4 1 2 1 1 1 5 11 5 14 2 1 2 Swap 58 | . 1 3 8 9 5 4 2 6 2 . 2 . 12 3 . 1 Drop 134 | . 2 6 13 15 8 17 . 9 3 4 23 9 5 6 2 12 Fire 542 | . 6 25 75 32 30 5 2 . . 1 166 56 117 27 . . Melee 150 | . . . 2 20 14 23 7 27 13 11 1 . . . . 32 Ram 5 | . . . . . . . . . . . . . . 3 . 2 Kick 8 | . . 8 . . . . . . . . . . . . . . Crush 51 | . . . . . . . . . . 1 15 14 21 . . . Escape Stasis 32 | . . . . . 30 . . . . . 2 . . . . . Rewire 22 | . . . 1 . . . . . . . 17 . 4 . . . Trap . | . . . . . . . . . . . . . . . . . Miscellaneous . | . . . . . . . . . . . . . . . . . Route ------- -11/Scrapyard -10/Materials -10/Mines (discovered 3 exits: *Mat x2 / *Sub) -10/Subcaves (discovered 2 exits: *Mat / *Rec) -8/Materials -8/Garrison -8/Materials -7/Factory -7/Storage -7/Recycling -5/Factory -5/Garrison (discovered 3 exits: *Fac x3) -5/Factory (discovered 2 exits: [*Ext] / Gar) -5/Garrison -4/Factory -4/Waste -4/Factory History --------- Turn | Location | Event 1 | -11/Scrapyard | Discovered new exit (range 0) 1 | -11/Scrapyard | Entered Materials 163 | -10/Materials | Discovered new exit (range 9) 177 | -10/Materials | Identified exit to Mines 219 | -10/Materials | Entered Mines 228 | -10/Mines | Met a Derelict bent on vengeance 258 | -10/Mines | Assisted by bots powering up and referring to "LRC-V3" 260 | -10/Mines | Received a Rocket Launcher from a helpful Derelict 307 | -10/Mines | Build established: Mutant 643 | -10/Mines | Identified exit to Materials 819 | -10/Mines | Discovered exit to Materials (range 8) 822 | -10/Mines | Learned location of Storage (-7) 841 | -10/Mines | Discovered new exit (range 7) 867 | -10/Mines | Entered Subcaves 867 | -10/Subcaves | Accompanied by 2 allies 1116 | -10/Subcaves | Core integrity fell below 50% 1129 | -10/Subcaves | Visited 4L-MR0's lab 1143 | -10/Subcaves | Found Cargo Legs 1488 | -10/Subcaves | Shifting Twisted Machinery released Sub. Machine Gun 1507 | -10/Subcaves | Shifting Twisted Machinery released Piercing Trap 1509 | -10/Subcaves | Discovered new exit (range 15) 1533 | -10/Subcaves | Attached Cargo Legs, gained temporary slots: Utility x2 1933 | -10/Subcaves | Ambushed by Subdwellers from Twisted Machinery 1963 | -10/Subcaves | Learned location of Zion (-6) 1963 | -10/Subcaves | Met a Zionite searching for "candidates" 1996 | -10/Subcaves | Build established: Scavenger-Mutant 2124 | -10/Subcaves | Visited Clippyterm 2128 | -10/Subcaves | Learned Factory trap positions 2128 | -10/Subcaves | Learned Research security intel 2276 | -10/Subcaves | A swath of the cavern ceiling suddenly collapsed 2316 | -10/Subcaves | Shifting Twisted Machinery released Sub. Monowheel 2572 | -10/Subcaves | Core integrity fell below 20% 2864 | -10/Subcaves | Build established: Mutant 3346 | -10/Subcaves | Build established: Scavenger-Mutant 3589 | -10/Subcaves | Shifting Twisted Machinery released Flamer 4206 | -10/Subcaves | Shifting Twisted Machinery released Barrage Gun 4207 | -10/Subcaves | Shifting Twisted Machinery released Battle Rifle 4227 | -10/Subcaves | Discovered new exit (range 8) 4236 | -10/Subcaves | Entered Materials 4236 | -8/Materials | Evolved 4 slots: Propulsion x1, Utility x2, Weapon x1 4407 | -8/Materials | Lost 3 parts (1u2w) 4626 | -8/Materials | Identified exit to Garrison 4627 | -8/Materials | Entered Garrison 4639 | -8/Garrison | Triggered checkpoint 4642 | -8/Garrison | Garrison Relay disabled 4705 | -8/Garrison | Triggered checkpoint 4731 | -8/Garrison | Discovered new exit (range 10) 4755 | -8/Garrison | Core integrity fell below 50% 4840 | -8/Garrison | Garrison Relay disabled 4882 | -8/Garrison | Identified exit to Materials 4883 | -8/Garrison | Entered Materials 4917 | -8/Materials | Core integrity fell below 20% 5058 | -8/Materials | Discovered new exit (range 16) 5078 | -8/Materials | Repaired Imp. VTOL Module 5156 | -8/Materials | Identified exit to Factory 5156 | -8/Materials | Entered Factory 5156 | -7/Factory | Evolved 2 slots: Propulsion x1, Utility x1 5157 | -7/Factory | Loaded intel: 94 trap records 5277 | -7/Factory | Discovered new exit (range 15) 5281 | -7/Factory | Identified exit to Storage 5282 | -7/Factory | Entered Storage 5322 | -7/Storage | Found Prototype Launcher 5322 | -7/Storage | Identified Rocket Array 5346 | -7/Storage | Found Rocket Array 5383 | -7/Storage | Build established: Sprinter 5506 | -7/Storage | Used back door to open Recycling access 5506 | -7/Storage | Discovered new exit (range 5) 5508 | -7/Storage | Identified exit to Recycling 5509 | -7/Storage | Entered Recycling 5552 | -7/Recycling | Entered Scraplab 5555 | -7/Recycling | Found Prototype Device 5555 | -7/Recycling | Identified Scrap Engine 5809 | -7/Recycling | Discovered new exit (range 15) 5817 | -7/Recycling | Build established: Mutant 5824 | -7/Recycling | Identified exit to Factory 5825 | -7/Recycling | Entered Factory 5825 | -5/Factory | Evolved 4 slots: Propulsion x1, Utility x2, Weapon x1 6091 | -5/Factory | Identified exit to Garrison 6102 | -5/Factory | Entered Garrison 6102 | -5/Garrison | Accompanied by 3 allies 6144 | -5/Garrison | Triggered checkpoint 6144 | -5/Garrison | Garrison Relay disabled 6219 | -5/Garrison | Build established: Hacker-Mutant 6554 | -5/Garrison | Warlord forces raided the area 6654 | -5/Garrison | Triggered checkpoint 6701 | -5/Garrison | Installed Relay Interface Framework 6704 | -5/Garrison | Lost 4 allies 6718 | -5/Garrison | Triggered checkpoint 6735 | -5/Garrison | Triggered checkpoint 6768 | -5/Garrison | Triggered checkpoint 7352 | -5/Garrison | Triggered checkpoint 7413 | -5/Garrison | Discovered new exit (range 8) 7434 | -5/Garrison | Garrison Relay disabled 7559 | -5/Garrison | Discovered new exit (range 12) 7559 | -5/Garrison | Discovered new exit (range 37) 7559 | -5/Garrison | Discovered new exit (range 45) 7576 | -5/Garrison | Learned Factory security intel 7588 | -5/Garrison | Garrison Relay disabled 7724 | -5/Garrison | Triggered checkpoint 7936 | -5/Garrison | Build established: Hauler-Mutant 8098 | -5/Garrison | Triggered checkpoint 8134 | -5/Garrison | Garrison Relay disabled 8410 | -5/Garrison | Found Gamma Bomb Array 8775 | -5/Garrison | Entered Factory 8775 | -5/Factory | Accompanied by 2 allies 9075 | -5/Factory | First assault squad dispatched 9659 | -5/Factory | Discovered new exit (range 16) 9740 | -5/Factory | Identified exit to Garrison 9740 | -5/Factory | Entered Garrison 9756 | -5/Garrison | Triggered checkpoint 9826 | -5/Garrison | Destroyed 9 combat bots 9852 | -5/Garrison | Garrison Relay disabled 10189 | -5/Garrison | Lost 3 parts (1n2w) 10208 | -5/Garrison | System corruption reached 10% 10289 | -5/Garrison | Spotted B-75 Beast 10308 | -5/Garrison | Triggered checkpoint 10312 | -5/Garrison | Core integrity fell below 50% 10381 | -5/Garrison | Destroyed B-75 Beast 10386 | -5/Garrison | Core integrity fell below 20% 10415 | -5/Garrison | Lost 9 parts (2p3n4w) 10570 | -5/Garrison | Build established: Bothacker-Mutant 11162 | -5/Garrison | Garrison Relay disabled 11332 | -5/Garrison | Triggered checkpoint 11376 | -5/Garrison | Lost 3 allies 11755 | -5/Garrison | Discovered new exit (range 12) 11785 | -5/Garrison | Entered Factory 11785 | -4/Factory | Accompanied by 6 allies 11785 | -4/Factory | Evolved 2 slots: Power x1, Weapon x1 11942 | -4/Factory | Lost 4 allies 12001 | -4/Factory | Discovered new exit (range 16) 12017 | -4/Factory | Found Prototype Device 12017 | -4/Factory | Identified Exp. ECM Suite 12102 | -4/Factory | System corruption reached 10% 12103 | -4/Factory | Core integrity fell below 50% 12140 | -4/Factory | Lost 27 parts (6p7n9u5w) 12169 | -4/Factory | Sucked down chute 12169 | -4/Factory | Entered Waste 12181 | -4/Waste | Spotted C-40 Crusher 12184 | -4/Waste | EMP discharged 12190 | -4/Waste | Spotted C-40 Crusher 12195 | -4/Waste | Found Prototype Launcher 12195 | -4/Waste | Identified Point Singularity Launcher 12208 | -4/Waste | Found Corrupted Prototype Device 12208 | -4/Waste | Identified Thermal Barrier 12223 | -4/Waste | Discovered new exit (range 15) 12225 | -4/Waste | System corruption reached 30% 12228 | -4/Waste | Spotted C-40 Crusher 12238 | -4/Waste | Identified exit to Factory 12239 | -4/Waste | Entered Factory 12402 | -4/Factory | Build established: Mutant 12510 | -4/Factory | Found Powered Armor 12641 | -4/Factory | Core integrity fell below 20% 12657 | -4/Factory | Self-destructed Last Messages --------------- 12631_ Terminal disabled. 12631_ Destroyed Hover Unit. 12631_ O-16 Technician destroyed. 12633_ ALERT: Potential suspicious activity detected, Programmers report to Factory Zone 9C. 12633_ >> Machine Analyzer network decryption results: 12633_ Recycling Unit x1 12640_ The unstable cave ceiling collapses. 12641_ >> Machine Analyzer network decryption results: 12641_ Recycling Unit x1 12641_ Slug penetrates Wall. 12643_ U-05 Engineer lays Concrete. 12645_ G-67 Veteran destroyed. 12646_ Penetrated by Slug. 12646_ Slug penetrates Wall. 12646_ Penetrated by Slug. 12647_ System corrupted: Matter fused (-8). 12650_ K-01 Serf collects debris. 12655_ O-24 Administrator sends out distress signal. 12655_ O-24 Administrator: "IFF HANDSHAKE FAILED. SECURING TERMINAL." Map ----- +----------------------------------------------------+ | #???????????????????????? | | ############/##### ##??###?????????????????? ????? | | #??# ] # ?#??????#???#?????????????????? | | #### " # ??????????????????????????????? | | ## # ???????"??????????????????????? | | " ## # ??#???????????#???????????????? | | ## # ##????????????????????????????? | | ## # #????????"????????????????????? | | #######/######## #####?????????????????????????? | | #?# ! # +?????????????????????????? | | ### """ # #?????????????????????????? | | / / "Y" # #####+##########??????????? | | ### " " """ # ??????????? | | #?# """ # ?????????? | | #?# """ / ?????????? | | ###?# # ????????? | | ????# """ """ # ?????????? | | ????# """ """ ########s #####????????????? | | ????# """ """ #??????#s #????????????????? | | ????# #??????# #????????????????? | | ????# ! #??????# #????????????????? | | ????##############??????# #????????????????? | | ????????????????????????# #????????????????? | | ??????""????????????????# #????????????????? | | ??????""?? ?????????????# #????????????????? | | ??????"T????????????????#@ #????????????????? | | ??????""????????????????# #????????????????? | | ##????""????????????????# #????????????????? | | #??????????????????????# #????????????????? | | #??????????????????????# #????????????????? | | #??????????????????????# #????????????????? | | #??????????????????????# #????????????????? | | #?????????????????????? u ???????????????? | | #??????????????????????o ??????????????? | | #??????????????????????p ?????????????? | | #?????????????????????? ????????????? | | #?????????????????????? p ????????????? | | #?????????????????????? R ??????????????? | | #?????????????????????? ????????????????? | | #??????????????????????######???????????????????? | | ?????????????????????????????????????????????????? | | ?????????????????????????????????????????????????? | | ?????????????????????????????????????????????????? | | ?????????????????????????????????????????????????? | | ?????????????????????????????????????????????????? | | ?????????????????????????????????????????????????? | | ?????????????????????????????????????????????????? | | ?????????????????????????????????????????????????? | | ?????????????????????????????????????????????????? | | ?????????????????????????????????????????????????? | +----------------------------------------------------+ Best States ------------- Heat Dissipation 67 Energy Generation 45 Energy Capacity 392 Matter Stores 300 Matter Capacity 300 Sight Range 16 Robot Scan Range 15 Terrain Scan Range 20 Terrain Scan Density 10 Additional Mass Support 9 Armor Coverage 400 Resistance: TH 50 Evasion (%) 75 Targeting Accuracy 5 Melee Accuracy 10 Launcher Accuracy 60 Target Analysis 6 Core Analysis 6 Armor Integrity Analysis 40 Recoil Reduction 5 Energy Filtering 50 Particle Charging 20 Salvage Targeting 3 Offensive Hacking 20 Defensive Hacking 20 Relay Coupler Types 2 Relay Coupler Value 62 Authchip Count 1 Item Schematics ----------------- None Robot Schematics ------------------ None Fabricated ------------ Nothing Repaired ---------- Imp. VTOL Module | 24% | -8/Materials Alien Tech Used ----------------- None Achievements -------------- None Challenges ------------ None Game ------ Seed BraceHoverThrower Manual? 0 Play Time 01:31:05 Cumulative 1173.6 hours Start 2025.08.21 @ 11:20:01 End 2025.08.21 @ 13:32:45 Sessions 3 Manual Loads 0 Difficulty Rogue Special Mode None Game No. 1440 Rogue 1156 Adventurer 124 Explorer 160 Win Type - Total 53 Types 39/0/8/4/1/0/0/1/0/0 Lore% 92 Gallery% 88 Achievement% 81 Wizard Run 0 Options --------- Layout 0 ASCII 0 Keyboard 1 Movement Numpad Keybinds 0 Fullscreen 2 Font 18/X11 Map View 76x50 Zoom Use 0% Tactical HUD 1 Map Filters NONE Filters NONE Steam 1 RUN: 85c1534f-39ff-4b4a-b61f-175a5e7560d0